bitfinex/quotes_SOLUSD_20250626
["timestamp","ask_amount","ask_price","bid_price","bid_amount"]
[1750910472211,13.58385124,145.98,145.97,6.85072275]
[1750910472511,13.58385124,145.98,145.96,34.77105636]
[1750910472804,5.53215124,145.97,145.96,34.77105636]
[1750910473891,5.53215124,145.97,145.96,27.92]
[1750910474090,5.53215124,145.97,145.92,6.0]
[1750910474286,5.53215124,145.93,145.92,6.0]
[1750910474599,13.29185124,145.93,145.92,0.02]
[1750910475793,18.82400248,145.93,145.92,0.02]
[1750910476199,44.82400248,145.93,145.91,0.02]
[1750910476410,11.06430248,145.92,145.91,0.02]
[1750910478703,5.53215124,145.94,145.91,27.96]
[1750910479011,5.53215124,145.95,145.91,27.96]
[1750910479591,5.53215124,145.94,145.91,27.96]
[1750910479785,8.1433,145.97,145.91,27.96]
[1750910480110,8.1433,145.97,145.92,6.85307017]
[1750910480311,5.53215124,145.95,145.92,6.85307017]
[1750910483904,5.53215124,145.95,145.92,6.35307017]
[1750910484198,5.53215124,145.94,145.92,6.35307017]
[1750910487109,5.53215124,145.93,145.92,6.35307017]
[1750910488312,5.53215124,145.93,145.91,34.81341158]
[1750910488521,5.53215124,145.92,145.91,27.96]
[1750910490513,5.53215124,145.92,145.91,34.81353985]
[1750910491337,26.0,145.96,145.91,34.81353985]
[1750910491633,5.53215124,145.92,145.91,34.81353985]
[1750910495237,5.53215124,145.94,145.91,34.81353985]
[1750910495738,5.53215124,145.93,145.91,34.81353985]
[1750910497630,5.53215124,145.94,145.91,34.81353985]
[1750910498018,5.53215124,145.93,145.91,34.81353985]
[1750910498330,8.1433,145.97,145.91,34.81353985]
[1750910498331,5.53215124,145.92,145.91,34.81353985]
[1750910499438,5.53215124,145.92,145.91,27.96]
[1750910501320,5.53215124,145.92,145.91,0.02]
[1750910501512,18.92270248,145.92,145.91,0.02]
[1750910501718,5.53215124,145.9,145.89,0.02]
[1750910505940,5.53215124,145.9,145.86,0.02]
[1750910506148,5.53215124,145.87,145.86,0.02]
[1750910512443,39.04805124,145.87,145.85,0.02]
[1750910512624,11.06430248,145.86,145.83,0.02]
[1750910512941,11.06430248,145.84,145.83,0.02]
[1750910513933,33.5159,145.87,145.83,0.02]
[1750910514134,5.53215124,145.84,145.83,0.02]
[1750910531957,11.06430248,145.84,145.83,0.02]
[1750910532131,37.06430248,145.84,145.83,0.02]
[1750910534033,37.06430248,145.84,145.78,6.0]
[1750910534034,18.79181043,145.83,145.78,6.0]
[1750910534340,5.53215124,145.79,145.78,0.02]
[1750910537849,26.0,145.79,145.78,0.02]
[1750910538039,31.53215124,145.79,145.78,0.02]
[1750910541068,19.07613357,145.78,145.77,0.02]
[1750910541365,11.06430248,145.77,145.76,0.02]
[1750910541948,26.0,145.75,145.74,0.02]
[1750910542265,31.53215124,145.75,145.74,0.02]
[1750910551259,5.53215124,145.75,145.74,0.02]
[1750910552285,3.57520174,145.81,145.74,28.04]
[1750910552574,26.0,145.8,145.74,33.57215124]
[1750910552750,3.57520174,145.81,145.76,5.53215124]
[1750910552751,5.53215124,145.81,145.76,5.53215124]
[1750910553277,20.05637318,145.88,145.76,5.53215124]
[1750910553278,3.57414734,145.85,145.78,6.85965152]
[1750910553470,5.53215124,145.83,145.78,13.90710276]
[1750910553952,5.53215124,145.81,145.78,8.37495152]
[1750910554147,29.57414734,145.85,145.78,8.37495152]
[1750910554359,5.53215124,145.82,145.78,8.37495152]
[1750910555366,5.53215124,145.83,145.78,13.90710276]
[1750910555564,5.53215124,145.83,145.79,18.79181043]
[1750910555767,5.53215124,145.83,145.8,28.04]
[1750910556577,5.53215124,145.83,145.8,34.89824565]
[1750910558879,29.57414734,145.85,145.8,34.89824565]
[1750910559081,5.53215124,145.83,145.8,34.89824565]
[1750910559575,5.53215124,145.81,145.8,28.04]
[1750910561464,5.53215124,145.81,145.77,28.04]
[1750910561759,5.53215124,145.79,145.77,28.04]
[1750910561972,5.53215124,145.78,145.77,28.04]
[1750910562284,5.53215124,145.78,145.75,6.02]
[1750910562574,5.53215124,145.77,145.75,34.08]
[1750910565160,5.53215124,145.76,145.75,6.02]
[1750910567867,5.53215124,145.76,145.74,0.02]
[1750910568062,5.53215124,145.76,145.74,28.06]
[1750910568785,5.53215124,145.76,145.74,0.02]
[1750910568976,5.53215124,145.76,145.74,28.06]
[1750910569173,5.53215124,145.76,145.74,0.02]
[1750910569491,26.0,145.79,145.74,34.92151839]
[1750910569666,5.53215124,145.77,145.74,34.92151839]
[1750910571490,5.53215124,145.78,145.74,34.92151839]
[1750910571686,26.0,145.79,145.74,40.45366963]
[1750910571890,5.53215124,145.79,145.74,40.45366963]
[1750910572593,0.04,145.84,145.79,0.42648471]
[1750910572881,0.04,145.84,145.82,5.53215124]
[1750910573063,0.04,145.84,145.83,28.18]
[1750910575089,0.04,145.84,145.83,35.03729959]
[1750910582500,0.04,145.84,145.83,40.56945083]
[1750910582874,0.04,145.84,145.83,35.03729959]
[1750910588992,0.04,145.84,145.83,28.18]
[1750910591201,5.57215124,145.84,145.78,18.79181043]
[1750910591400,5.57215124,145.84,145.77,7.37857438]
[1750910591401,5.53215124,145.82,145.79,34.16]
[1750910591791,5.53215124,145.82,145.79,6.02]
[1750910591986,5.53215124,145.82,145.8,28.14]
[1750910592418,5.53215124,145.82,145.79,6.02]
[1750910592716,5.53215124,145.82,145.8,28.14]
[1750910593098,0.04,145.84,145.8,28.14]
[1750910593403,5.53215124,145.82,145.8,28.14]
[1750910593716,5.53215124,145.82,145.79,6.02]
[1750910593717,5.53215124,145.81,145.79,6.02]
[1750910593892,5.53215124,145.8,145.79,6.02]
[1750910600503,5.53215124,145.8,145.74,18.81181043]
[1750910600794,5.53215124,145.78,145.75,34.2]
[1750910601596,5.53215124,145.77,145.75,6.08]
[1750910601822,5.53215124,145.76,145.75,34.18]
[1750910603009,5.53215124,145.76,145.74,0.02]
[1750910603300,5.53215124,145.76,145.74,28.14]
[1750910603702,5.53215124,145.77,145.74,28.14]
[1750910604529,5.53215124,145.76,145.74,28.14]
[1750910604699,5.53215124,145.75,145.74,28.14]
[1750910605106,5.53215124,145.75,145.74,0.02]
[1750910608628,26.0,145.78,145.74,0.02]
[1750910608922,5.53215124,145.76,145.74,0.02]
[1750910610426,5.53215124,145.78,145.75,28.16]
[1750910610626,26.0,145.8,145.75,28.16]
[1750910610810,5.53215124,145.78,145.75,28.16]
[1750910613316,26.0,145.8,145.75,35.02097661]
[1750910613521,5.53215124,145.81,145.76,11.61215124]
[1750910614527,5.53215124,145.81,145.77,6.86012211]
[1750910614831,5.53215124,145.81,145.78,28.14]
[1750910616017,5.53215124,145.8,145.78,28.14]
[1750910616215,5.53215124,145.79,145.78,28.14]
[1750910616814,5.53215124,145.8,145.78,28.14]
[1750910617021,26.0,145.82,145.78,34.99960456]
[1750910617332,5.53215124,145.81,145.78,34.99958213]
[1750910618841,5.53215124,145.82,145.78,34.99958213]
[1750910619620,5.53215124,145.81,145.78,34.99958213]
[1750910625535,5.53215124,145.8,145.78,34.99958213]
[1750910626751,5.53215124,145.8,145.78,28.14]
[1750910627257,5.53215124,145.8,145.79,28.1]
[1750910635067,5.53215124,145.8,145.76,6.06]
[1750910635230,5.53215124,145.78,145.77,28.08]
[1750910636129,5.53215124,145.78,145.77,28.06]
[1750910636532,5.53215124,145.78,145.74,0.02]
[1750910636734,5.53215124,145.76,145.75,28.06]
[1750910637124,5.53215124,145.76,145.74,0.02]
[1750910637341,5.53215124,145.75,145.74,28.08]
[1750910638752,5.53215124,145.75,145.74,0.02]
[1750910638951,5.53215124,145.75,145.74,28.08]
[1750910639141,5.53215124,145.76,145.74,28.08]
[1750910640236,5.53215124,145.75,145.74,28.08]
[1750910640853,5.53215124,145.75,145.74,0.02]
[1750910643857,31.53215124,145.75,145.74,0.02]
[1750910646260,31.95863595,145.75,145.74,0.02]
[1750910648254,31.53215124,145.75,145.74,0.02]
[1750910650637,31.95863595,145.75,145.74,0.02]
[1750910652044,38.81969941,145.75,145.74,0.02]
[1750910654068,26.0,145.73,145.72,0.02]
[1750910654242,31.53215124,145.73,145.72,0.02]
[1750910656783,31.95863595,145.73,145.72,0.02]
[1750910657149,38.82064102,145.73,145.72,0.02]
[1750910657648,38.82064102,145.73,145.71,0.02]
[1750910657975,5.95863595,145.72,145.7,0.02]
[1750910658286,5.53215124,145.71,145.7,0.02]
[1750910659370,26.0,145.73,145.7,0.02]
[1750910659575,5.53215124,145.71,145.7,0.02]
[1750910661154,12.82158289,145.71,145.7,0.02]
[1750910662683,31.53215124,145.65,145.64,0.02]
[1750910663000,26.42648471,145.65,145.64,0.02]
[1750910663156,31.53215124,145.65,145.64,0.02]
[1750910663982,31.95863595,145.65,145.64,0.02]
[1750910664278,31.53215124,145.65,145.64,0.02]
[1750910665681,5.53215124,145.67,145.64,0.02]
[1750910665898,5.53215124,145.68,145.64,5.55215124]
[1750910666065,5.53215124,145.69,145.64,5.55215124]
[1750910666264,31.53215124,145.69,145.64,5.55215124]
[1750910666467,5.53215124,145.69,145.64,5.55215124]
[1750910666676,6.1,145.73,145.65,6.86577411]
[1750910666868,26.0,145.7,145.66,5.53215124]
[1750910667271,5.53215124,145.71,145.66,5.53215124]
[1750910667577,31.53215124,145.71,145.66,5.53215124]
[1750910667780,5.53215124,145.71,145.66,5.53215124]
[1750910667984,5.53215124,145.71,145.67,6.86483146]
[1750910669061,5.53215124,145.71,145.66,6.86530275]
[1750910669258,5.53215124,145.7,145.66,6.86530275]
[1750910670586,29.57679911,145.72,145.66,6.86530275]
[1750910670888,5.53215124,145.7,145.66,6.86530275]
[1750910671090,5.53215124,145.68,145.65,35.50565592]
[1750910671265,5.53215124,145.67,145.65,35.50573108]
[1750910671865,5.53215124,145.66,145.65,35.50573108]
[1750910672585,5.53215124,145.66,145.65,28.64]
[1750910673371,5.53215124,145.66,145.64,6.12]
[1750910673565,5.53215124,145.67,145.64,12.98619417]
[1750910674886,5.53215124,145.66,145.64,12.98619417]
[1750910675070,5.53215124,145.66,145.64,6.12]
[1750910675764,5.53215124,145.66,145.64,12.98620996]
[1750910676763,26.0,145.7,145.64,12.98620996]
[1750910677069,5.53215124,145.68,145.64,12.98620996]
[1750910677781,5.53215124,145.7,145.65,24.32396167]
[1750910678593,29.57679911,145.72,145.66,5.53215124]
[1750910678890,5.53215124,145.7,145.67,28.62]
[1750910679472,5.53215124,145.69,145.67,28.62]
[1750910679782,5.53215124,145.68,145.67,28.62]
[1750910680184,5.53215124,145.68,145.64,41.72793583]
[1750910680495,5.53215124,145.67,145.64,41.72793583]
[1750910680789,5.53215124,145.67,145.64,41.58577426]
[1750910682274,3.57679911,145.72,145.64,41.58577426]
[1750910682469,3.57679911,145.72,145.66,5.53215124]
[1750910682684,146.5,145.76,145.67,5.53215124]
[1750910682888,5.53215124,145.73,145.68,34.11215124]
[1750910683802,5.53215124,145.73,145.69,6.86388907]
[1750910684098,5.53215124,145.72,145.69,6.86388907]
[1750910684985,29.57646278,145.75,145.69,6.86388907]
[1750910685191,5.53215124,145.72,145.69,6.86388907]
[1750910686292,3.57646278,145.75,145.7,5.53215124]
[1750910686594,5.53215124,145.76,145.71,34.09215124]
[1750910686984,9.14755045,145.78,145.73,5.53215124]
[1750910687298,0.04,145.78,145.74,34.09215124]
[1750910687685,0.04,145.78,145.75,5.53215124]
[1750910688189,0.04,145.78,145.76,6.86059275]
[1750910688578,0.04,145.78,145.77,28.56]
[1750910690176,0.04,145.78,145.77,35.42012211]
[1750910691383,0.04,145.78,145.77,54.21193254]
[1750910692390,0.04,145.78,145.77,59.74408378]
[1750910695784,0.04,145.78,145.77,54.21193254]
[1750910696285,0.04,145.78,145.77,59.74408378]
[1750910697006,0.04,145.78,145.77,60.02840692]
[1750910699211,0.04,145.78,145.77,175.41441913]
[1750910699379,0.04,145.78,145.77,148.72840692]
[1750910700013,0.04,145.79,145.77,148.72840692]
[1750910700312,0.04,145.79,145.78,30.68768481]
[1750910700521,0.04,145.79,145.78,31.37364996]
[1750910701197,0.04,145.84,145.82,18.64964886]
[1750910701418,0.04,145.84,145.83,53.95613357]
[1750910701627,0.04,145.84,145.83,59.48828481]
[1750910701780,0.04,145.84,145.83,41.73729959]
[1750910704816,0.04,145.84,145.83,60.52911002]
[1750910706528,0.04,145.84,145.83,41.73729959]
[1750910706826,5.57215124,145.84,145.83,6.32]
[1750910707598,0.04,145.84,145.83,6.32]
[1750910707906,0.04,145.84,145.83,13.17729959]
[1750910708108,0.04,145.84,145.83,37.50126126]
[1750910708317,0.04,145.84,145.83,13.17729959]
[1750910709997,0.04,145.84,145.83,18.70945083]
[1750910711991,0.04,145.84,145.83,13.17729959]
[1750910720541,0.04,145.84,145.83,6.32]
[1750910720720,5.57215124,145.84,145.83,34.82]
[1750910720919,5.57215124,145.84,145.83,28.5]
[1750910721124,0.04,145.84,145.83,28.5]
[1750910722246,5.57215124,145.84,145.83,28.5]
[1750910722612,5.57215124,145.84,145.79,6.85906678]
[1750910722818,5.53215124,145.81,145.8,28.48]
[1750910724745,5.53215124,145.81,145.78,34.95735878]
[1750910724921,5.53215124,145.8,145.79,28.48]
[1750910725940,5.53215124,145.8,145.78,28.09786604]
[1750910726140,5.53215124,145.79,145.78,28.09786604]
[1750910726344,5.53215124,145.8,145.78,34.95751756]
[1750910727948,7.7182,145.82,145.78,34.95751756]
[1750910728156,5.53215124,145.8,145.78,34.95751756]
[1750910730654,5.53215124,145.79,145.77,35.31997527]
[1750910731125,5.53215124,145.79,145.77,28.46]
[1750910731321,5.53215124,145.78,145.77,28.44]
[1750910731936,5.53215124,145.78,145.76,0.02]
[1750910732132,7.7182,145.82,145.76,0.02]
[1750910732133,5.53215124,145.77,145.76,0.02]
[1750910734263,5.53215124,145.78,145.76,0.02]
[1750910734567,5.53215124,145.82,145.77,33.97215124]
[1750910734728,5.53215124,145.83,145.78,24.32396167]
[1750910734929,0.04,145.84,145.79,28.44]
[1750910735131,0.04,145.84,145.8,5.53215124]
[1750910735343,0.04,145.84,145.81,33.97215124]
[1750910736035,0.04,145.84,145.82,6.85776985]
[1750910736230,0.04,145.84,145.83,28.46]
[1750910742137,5.57215124,145.84,145.83,28.46]
[1750910742537,0.04,145.84,145.83,28.46]
[1750910744757,5.57215124,145.84,145.83,28.46]
[1750910745445,5.57215124,145.84,145.81,35.27809754]
[1750910746279,5.53215124,145.82,145.81,28.42]
[1750910746652,5.53215124,145.82,145.79,28.4]
[1750910747269,5.53215124,145.82,145.78,13.17948429]
[1750910747469,5.53215124,145.82,145.79,28.4]
[1750910749260,0.04,145.84,145.79,35.25915879]
[1750910749458,5.53215124,145.82,145.79,35.25915879]
[1750910750777,5.53215124,145.82,145.79,28.4]
[1750910751580,5.53215124,145.81,145.79,28.4]
[1750910751874,5.53215124,145.8,145.78,6.32]
[1750910752073,5.53215124,145.79,145.78,34.68]
[1750910752273,5.53215124,145.8,145.78,34.68]
[1750910753453,5.57215124,145.84,145.78,34.68]
[1750910753654,5.53215124,145.8,145.78,34.68]
[1750910753878,5.53215124,145.8,145.78,6.32]
[1750910755385,5.53215124,145.79,145.78,6.32]
[1750910757182,26.0,145.81,145.78,6.32]
[1750910757372,31.53215124,145.81,145.78,13.17945447]
[1750910757557,5.53215124,145.81,145.78,13.17945447]
[1750910757758,5.53215124,145.82,145.79,28.34]
[1750910759683,5.53215124,145.82,145.79,35.19874254]
[1750910760386,5.57215124,145.84,145.79,40.73089378]
[1750910760766,5.53215124,145.83,145.79,40.73089378]
[1750910760973,5.53215124,145.83,145.79,35.19874254]
[1750910762763,5.53215124,145.82,145.79,35.19874254]
[1750910763370,5.53215124,145.83,145.79,35.19874254]
[1750910765769,5.53215124,145.82,145.79,35.19874254]
[1750910767800,5.53215124,145.83,145.79,35.19874254]
[1750910772198,3.61362863,145.84,145.79,35.19874254]
[1750910772398,5.53215124,145.82,145.79,35.19874254]
[1750910774300,5.53215124,145.81,145.79,35.19874254]
[1750910774692,5.53215124,145.82,145.79,35.19874254]
[1750910775169,5.53215124,145.81,145.79,35.19874254]
[1750910775375,5.53215124,145.8,145.79,28.34]
[1750910775776,5.53215124,145.8,145.78,6.32]
[1750910775984,5.53215124,145.79,145.78,6.32]
[1750910779821,5.53215124,145.79,145.78,34.6]
[1750910782599,5.53215124,145.8,145.78,34.6]
[1750910783910,5.53215124,145.8,145.78,6.32]
[1750910784207,5.53215124,145.8,145.78,34.58]
[1750910787198,5.53215124,145.8,145.78,28.26]
[1750910788486,5.53215124,145.8,145.78,35.11962456]
[1750910789314,3.57412948,145.83,145.79,5.53215124]
[1750910789514,0.04,145.84,145.8,33.75215124]
[1750910790207,5.57215124,145.84,145.8,28.22]
[1750910790400,5.57215124,145.84,145.81,6.85824017]
[1750910790603,5.57215124,145.84,145.82,28.22]
[1750910794112,5.57215124,145.84,145.82,35.07764728]
[1750910794701,0.04,145.84,145.82,35.07764728]
[1750910794904,0.04,145.84,145.82,40.60979852]
[1750910795101,0.04,145.84,145.83,24.32396167]
[1750910796221,0.04,145.84,145.83,31.18126126]
[1750910798500,0.04,145.84,145.83,122.40691435]
[1750910799414,0.04,145.84,145.83,127.93906559]
[1750910799607,0.04,145.84,145.83,122.40691435]
[1750910804410,0.04,145.84,145.83,127.93906559]
[1750910804615,0.04,145.86,145.85,45.07613357]
[1750910804920,0.04,145.86,145.85,79.45392073]
[1750910806607,0.04,145.86,145.85,175.01028]
[1750910806807,0.04,145.86,145.85,174.32464408]
[1750910807400,0.04,145.86,145.85,185.50096926]
[1750910809137,0.04,145.87,145.86,25.93202277]
[1750910809436,0.04,145.88,145.87,25.58593357]
[1750910809634,0.04,145.88,145.87,59.25808481]
[1750910810715,0.04,145.88,145.87,52.74828481]
[1750910811239,0.04,145.88,145.87,59.1772193]
[1750910811538,0.04,145.88,145.87,85.60370401]
[1750910812221,0.04,145.88,145.87,86.28924593]
[1750910813241,0.04,145.88,145.87,174.98924593]
[1750910813424,0.04,145.88,145.87,174.30370401]
[1750910814925,0.04,145.88,145.87,148.30370401]
[1750910815122,0.04,145.88,145.87,157.90952919]
[1750910816213,0.04,145.89,145.88,19.07613357]
[1750910816414,0.04,145.89,145.88,25.29377973]
[1750910816628,0.04,145.89,145.88,34.89960491]
[1750910816823,0.04,145.89,145.88,123.59960491]
[1750910817033,0.04,145.96,145.89,28.68195875]
[1750910817380,0.04,145.96,145.95,18.79181043]
[1750910817520,0.04,145.96,145.95,58.60396167]
[1750910817917,0.04,145.96,145.95,58.88828481]
[1750910819431,0.04,145.96,145.95,65.73994633]
[1750910820843,0.04,145.96,145.95,41.13166152]
[1750910821916,0.04,145.96,145.95,34.28]
[1750910822122,5.57215124,145.96,145.95,34.28]
[1750910822321,0.04,145.96,145.95,41.13166152]
[1750910826948,0.04,145.96,145.95,65.73994633]
[1750910830571,0.04,145.96,145.95,66.42511248]
[1750910830852,0.04,145.96,145.95,164.73093766]
[1750910831054,0.04,145.96,145.95,164.04577151]
[1750910833339,0.04,145.98,145.97,44.64964886]
[1750910833543,0.04,145.98,145.97,168.17335708]
[1750910833845,0.04,145.98,145.97,167.48828481]
[1750910835357,0.04,145.98,145.97,174.33900756]
[1750910836957,0.04,145.98,145.97,85.63900756]
[1750910837141,0.04,145.98,145.97,86.32407983]
[1750910842850,0.04,145.98,145.97,79.68037161]
[1750910843162,0.04,145.98,145.97,85.63900756]
[1750910845648,0.04,145.98,145.97,59.63900756]
[1750910845846,0.04,145.98,145.95,5.53215124]
[1750910846064,0.04,145.98,145.96,28.2]
[1750910846568,5.57215124,145.98,145.96,28.2]
[1750910846755,5.53215124,145.97,145.96,28.2]
[1750910846962,5.57215124,145.98,145.96,28.2]
[1750910847150,5.57215124,145.98,145.96,35.05119209]
[1750910847391,5.57215124,145.98,145.96,6.85119209]
[1750910847558,5.57215124,145.98,145.97,28.2]
[1750910850657,0.04,145.98,145.97,28.2]
[1750910851677,0.04,145.98,145.97,35.05072275]
[1750910853868,0.04,145.98,145.96,6.85106635]
[1750910854052,0.04,145.98,145.97,28.2]
[1750910854904,0.04,145.98,145.97,52.52396167]
[1750910855172,0.04,145.98,145.97,52.80828481]
[1750910856052,0.04,145.98,145.97,59.65900756]
[1750910856682,0.04,145.98,145.97,53.84253318]
[1750910856983,0.04,145.98,145.97,35.05072275]
[1750910857476,0.04,145.98,145.96,6.85111284]
[1750910857679,0.04,145.98,145.97,28.22]
[1750910858180,0.04,145.98,145.97,40.60287399]
[1750910858358,0.04,145.98,145.97,59.39468442]
[1750910859081,0.04,145.98,145.97,35.07072275]
[1750910859867,0.04,145.98,145.97,28.22]
[1750910860180,0.04,145.98,145.97,35.07072275]
[1750910865467,0.04,145.98,145.97,28.22]
[1750910866268,5.57215124,145.98,145.97,28.22]
[1750910867674,5.57215124,145.98,145.96,35.05105293]
[1750910868583,5.57215124,145.98,145.96,28.2]
[1750910870497,5.53215124,145.97,145.96,28.2]
[1750910870672,5.53215124,145.97,145.95,6.12]
[1750910870994,5.53215124,145.96,145.92,6.85292718]
[1750910871287,5.53215124,145.94,145.93,28.18]
[1750910871793,0.04,145.98,145.93,28.18]
[1750910872095,5.53215124,145.95,145.93,28.18]
[1750910873194,5.53215124,145.94,145.93,28.18]
[1750910873903,0.04,145.98,145.93,35.03259542]
[1750910874105,5.53215124,145.97,145.93,35.03259542]
[1750910874868,5.53215124,145.95,145.93,28.18]
[1750910875387,5.53215124,145.95,145.93,35.03244867]
[1750910876076,5.53215124,145.95,145.93,6.85244867]
[1750910876293,5.53215124,145.96,145.93,35.07244867]
[1750910877800,5.53215124,145.96,145.93,28.22]
[1750910878003,5.53215124,145.95,145.93,28.22]
[1750910878300,5.53215124,145.94,145.92,35.07291883]
[1750910879002,5.53215124,145.94,145.92,6.85291883]
[1750910879181,5.53215124,145.94,145.92,28.2]
[1750910879376,5.53215124,145.95,145.92,28.2]
[1750910880491,5.53215124,145.94,145.91,6.85353985]
[1750910880690,5.53215124,145.92,145.9,6.16]
[1750910880894,31.53215124,145.91,145.9,0.02]
[1750910888407,31.95863595,145.91,145.9,0.02]
[1750910888608,0.42648471,145.9,145.87,0.02]
[1750910888809,31.53215124,145.88,145.87,0.02]
[1750910890718,5.53215124,145.88,145.87,0.02]
[1750910890921,26.0,145.85,145.84,0.02]
[1750910891221,37.49078719,145.85,145.84,0.02]
[1750910892712,31.53215124,145.85,145.84,0.02]
[1750910895007,5.53215124,145.85,145.84,0.02]
[1750910895317,31.53215124,145.85,145.84,0.02]
[1750910895817,26.0,145.85,145.84,0.02]
[1750910896114,31.53215124,145.85,145.84,0.02]
[1750910897008,5.53215124,145.85,145.84,0.02]
[1750910900601,31.53215124,145.85,145.84,0.02]
[1750910900806,5.53215124,145.85,145.84,0.02]
[1750910901020,31.53215124,145.85,145.84,0.02]
[1750910901218,5.53215124,145.85,145.84,0.02]
[1750910902122,31.53215124,145.85,145.84,0.02]
[1750910902326,5.53215124,145.85,145.84,0.02]
[1750910902925,31.53215124,145.85,145.84,0.02]
[1750910903232,5.53215124,145.85,145.84,0.02]
[1750910904112,31.53215124,145.85,145.84,0.02]
[1750910904313,5.53215124,145.85,145.84,0.02]
[1750910905015,31.53215124,145.85,145.84,0.02]
[1750910905528,5.53215124,145.85,145.84,0.02]
[1750910906029,31.53215124,145.85,145.84,0.02]
[1750910906523,26.0,145.85,145.84,0.02]
[1750910906823,31.53215124,145.85,145.84,0.02]
[1750910907620,5.53215124,145.86,145.84,0.02]
[1750910907999,5.53215124,145.85,145.84,0.02]
[1750910909104,31.53215124,145.85,145.84,0.02]
[1750910909828,26.0,145.85,145.84,0.02]
[1750910910128,31.53215124,145.85,145.84,0.02]
[1750910913729,11.06430248,145.85,145.84,0.02]
[1750910915323,31.53215124,145.85,145.84,0.02]
[1750910915532,5.53215124,145.85,145.84,0.02]
[1750910915827,31.53215124,145.85,145.84,0.02]
[1750910916027,5.53215124,145.85,145.84,0.02]
[1750910917114,31.53215124,145.85,145.84,0.02]
[1750910917321,5.53215124,145.85,145.84,0.02]
[1750910919636,31.53215124,145.85,145.84,0.02]
[1750910924612,26.0,145.85,145.84,0.02]
[1750910925846,152.03215124,145.87,145.84,6.8768294]
[1750910926611,152.03215124,145.87,145.84,0.02]
[1750910927538,9.10516631,145.88,145.84,0.02]
[1750910927747,31.53215124,145.88,145.84,5.55215124]
[1750910928439,26.0,145.88,145.84,5.55215124]
[1750910928820,26.0,145.88,145.85,6.85635927]
[1750910929016,26.0,145.88,145.85,12.38851051]
[1750910929421,26.0,145.88,145.85,6.85635927]
[1750910929616,31.53215124,145.88,145.85,6.85635927]
[1750910929817,26.0,145.88,145.85,6.85635927]
[1750910930037,31.53215124,145.88,145.85,6.85635927]
[1750910932044,26.0,145.88,145.85,6.85635927]
[1750910932244,26.0,145.88,145.85,12.38851051]
[1750910932434,31.53215124,145.89,145.85,12.38851051]
[1750910932635,31.53215124,145.89,145.85,6.85635927]
[1750910934657,5.53215124,145.88,145.84,40.7489331]
[1750910939654,5.53215124,145.88,145.84,35.21678186]
[1750910940530,5.53215124,145.88,145.84,28.36]
[1750910940732,5.53215124,145.85,145.84,0.02]
[1750910942759,31.53215124,145.85,145.84,0.02]
[1750910947486,5.53215124,145.85,145.84,0.02]
[1750910948263,41.06543083,145.85,145.84,0.02]
[1750910948458,20.13131557,145.85,145.84,0.02]
[1750910948647,15.06543083,145.85,145.84,0.02]
[1750910949471,41.06543083,145.85,145.84,0.02]
[1750910949658,14.59916433,145.85,145.84,0.02]
[1750910949852,9.53327959,145.85,145.84,0.02]
[1750910952784,15.06543083,145.85,145.84,0.02]
[1750910952970,4.00112835,145.85,145.84,0.02]
[1750910953170,9.53327959,145.85,145.84,0.02]
[1750910958488,9.39111802,145.85,145.84,0.02]
[1750910958689,9.53327959,145.85,145.84,0.02]
[1750910960874,26.0,145.82,145.81,0.02]
[1750910961083,31.53215124,145.82,145.81,0.02]
[1750910964574,31.95863595,145.82,145.81,0.02]
[1750910967189,38.8164058,145.82,145.81,0.02]
[1750910968487,31.95863595,145.82,145.81,0.02]
[1750910968686,30.00163633,145.82,145.81,0.02]
[1750910968998,35.53378757,145.82,145.81,0.02]
[1750910970692,61.04120628,145.82,145.81,0.02]
[1750910976002,55.50905504,145.82,145.81,0.02]